bitfinex/quotes_ETHUSD_20250520
["timestamp","ask_amount","ask_price","bid_price","bid_amount"]
[1747725947368,3.9425958,2536.4,2536.3,28.44031108]
[1747725947553,9.0186,2537.3,2536.4,0.9982]
[1747725947753,3.94229721,2536.6,2536.4,0.9982]
[1747725947940,3.94229721,2536.6,2536.5,0.37651777]
[1747725948139,3.94219436,2536.7,2536.5,1.39803869]
[1747725948639,3.94203018,2536.8,2536.6,1.0055]
[1747725948842,3.94212953,2536.7,2536.6,1.0055]
[1747725949772,3.9415962,2537.1,2536.7,0.55]
[1747725949936,1.0201,2537.8,2537.0,0.9609]
[1747725950137,3.94098083,2537.5,2537.2,0.9609]
[1747725950333,3.94098083,2537.5,2537.3,25.231]
[1747725951769,3.94098083,2537.5,2537.4,0.37651777]
[1747725952079,3.94098083,2537.5,2537.4,1.35861847]
[1747725954098,3.94098083,2537.5,2537.4,0.37651777]
[1747725955471,4.97478083,2537.5,2537.4,0.37651777]
[1747725955668,3.94104201,2537.4,2537.3,25.231]
[1747725958395,11.94104201,2537.4,2537.3,25.231]
[1747725958768,11.94104201,2537.4,2537.3,17.017]
[1747725958962,14.98759949,2537.4,2537.3,17.017]
[1747725959697,3.94135267,2537.2,2537.1,8.213]
[1747725960477,3.94057611,2537.7,2537.2,1.028]
[1747725960787,3.94131787,2537.3,2537.2,1.028]
[1747725961902,3.94135267,2537.2,2537.1,8.213]
[1747725962475,3.94042083,2537.8,2537.2,1.0004]
[1747725962774,3.94088874,2537.5,2537.2,1.0004]
[1747725963308,3.94107512,2537.4,2537.2,1.0004]
[1747725964019,3.94083066,2537.6,2537.3,0.37656255]
[1747725964332,0.05,2537.9,2537.6,0.55]
[1747725964479,0.05,2537.9,2537.8,12.49042083]
[1747725964669,0.05,2537.9,2537.8,23.27131583]
[1747725964879,0.05,2537.9,2537.8,24.04441]
[1747725965086,0.05,2537.9,2537.8,18.05494217]
[1747725965269,0.05,2537.9,2537.8,17.90921703]
[1747725965470,0.05,2537.9,2537.8,31.12590203]
[1747725966593,3.99026557,2537.9,2537.8,24.87840703]
[1747725967119,3.99026557,2537.9,2537.8,24.32840703]
[1747725967927,3.99026557,2537.9,2537.8,17.40050703]
[1747725968076,3.99026557,2537.9,2537.8,8.58856255]
[1747725968277,3.99026557,2537.9,2537.8,8.58756255]
[1747725969615,3.99026557,2537.9,2537.8,8.211]
[1747725972513,3.94135267,2537.2,2537.0,0.47074947]
[1747725972677,3.94150802,2537.1,2537.0,0.47074947]
[1747725973013,3.94150802,2537.1,2537.0,16.179]
[1747725973521,3.94010704,2538.1,2537.0,16.179]
[1747725973522,3.94051956,2537.8,2537.0,16.58144593]
[1747725973720,3.94023151,2538.0,2537.2,0.55]
[1747725973935,3.94042083,2537.8,2537.3,1.07480364]
[1747725974422,3.94073586,2537.6,2537.3,1.07480364]
[1747725974586,3.94042083,2537.8,2537.2,8.55]
[1747725974587,3.99030717,2537.9,2537.5,0.9758]
[1747725974922,3.94053416,2537.8,2537.7,8.0]
[1747725975526,3.94053416,2537.8,2537.7,8.37568953]
[1747725976182,3.94053416,2537.8,2537.7,0.37568953]
[1747725976931,3.94104201,2537.4,2537.3,1.50984947]
[1747725977092,3.94104201,2537.4,2537.3,9.68984947]
[1747725977432,3.94104201,2537.4,2537.3,8.65074947]
[1747725978330,4.7292371,2537.4,2537.3,8.65074947]
[1747725978634,5.7238371,2537.4,2537.3,8.65074947]
[1747725978818,4.93564201,2537.4,2537.3,8.18]
[1747725979222,3.94166338,2537.0,2536.9,17.011]
[1747725979437,3.94166338,2537.0,2536.9,25.19]
[1747725979625,3.94166338,2537.0,2536.9,33.19]
[1747725982753,3.94166338,2537.0,2536.9,33.56617928]
[1747725983467,3.94166338,2537.0,2536.9,34.59447928]
[1747725983874,0.983,2537.8,2537.0,8.0]
[1747725984173,3.94137248,2537.2,2537.0,8.0]
[1747725985082,3.94150802,2537.1,2537.0,8.0]
[1747725986237,3.94166338,2537.0,2536.9,25.19]
[1747725988535,1.0028,2537.6,2536.9,25.19]
[1747725988736,3.94166338,2537.0,2536.9,33.19]
[1747725989443,3.94157737,2537.1,2537.0,8.0]
[1747725990350,3.94166338,2537.0,2536.9,25.19]
[1747725990545,3.94166338,2537.0,2536.9,33.19]
[1747725990783,3.94166338,2537.0,2536.9,25.56614649]
[1747725991079,3.94157737,2537.1,2537.0,8.9717]
[1747725991677,3.94123293,2537.3,2537.0,8.9717]
[1747725992352,3.94123293,2537.3,2537.1,0.37614649]
[1747725993573,3.94135267,2537.2,2537.1,0.37614649]
[1747725995849,4.90569722,2537.8,2537.1,1.40174649]
[1747725996079,3.94130058,2537.3,2537.1,1.0256]
[1747725996283,3.94130058,2537.3,2537.2,0.90256]
[1747725996484,3.94135267,2537.2,2537.0,8.0]
[1747725996688,3.94150802,2537.1,2537.0,8.0]
[1747725997483,3.94150802,2537.1,2537.0,16.181]
[1747725997672,3.94150802,2537.1,2537.0,8.181]
[1747725997871,4.82573409,2537.1,2537.0,8.181]
[1747726000360,3.94150802,2537.1,2537.0,8.181]
[1747726003494,3.94150802,2537.1,2537.0,16.181]
[1747726003700,3.94150802,2537.1,2537.0,16.55781445]
[1747726003897,4.99440802,2537.1,2537.0,0.37681445]
[1747726004096,4.99440802,2537.1,2537.0,8.53181445]
[1747726006207,4.99440802,2537.1,2537.0,8.155]
[1747726007216,3.94150802,2537.1,2537.0,8.155]
[1747726008397,4.82626409,2537.1,2537.0,8.155]
[1747726010017,3.94166338,2537.0,2536.9,17.011]
[1747726010310,3.94166338,2537.0,2536.9,25.166]
[1747726010487,3.94166338,2537.0,2536.9,26.1762]
[1747726011915,3.94166338,2537.0,2536.9,26.55339751]
[1747726017330,3.94158196,2537.1,2536.9,34.55339751]
[1747726017650,3.94082779,2537.6,2537.1,1.5701]
[1747726017854,0.05,2537.9,2537.4,9.5701]
[1747726018009,0.05,2537.9,2537.8,0.55]
[1747726018342,0.05,2537.9,2537.8,38.60091091]
[1747726018549,0.05,2537.9,2537.8,37.009008]
[1747726018843,0.05,2537.9,2537.8,33.55143418]
[1747726019355,0.05,2537.9,2537.8,31.14680118]
[1747726019510,0.05,2537.9,2537.8,35.08722201]
[1747726019910,0.05,2537.9,2537.8,34.87492501]
[1747726020619,1.96525857,2538.3,2538.2,0.55]
[1747726020950,1.0151,2538.7,2538.2,17.38919751]
[1747726021114,3.93964464,2538.3,2538.2,17.38919751]
[1747726021311,3.93964464,2538.3,2538.2,25.54219751]
[1747726022270,3.93964464,2538.3,2538.2,25.165]
[1747726023344,3.93964464,2538.3,2538.2,33.165]
[1747726023646,3.93922747,2538.6,2538.2,33.165]
[1747726023647,3.93933063,2538.6,2538.3,8.0]
[1747726023957,3.93928042,2538.6,2538.4,0.03939007]
[1747726024141,3.93928042,2538.6,2538.3,8.0]
[1747726024636,3.93936895,2538.5,2538.3,8.0]
[1747726025253,3.93925555,2538.6,2538.3,8.0]
[1747726025455,0.9711,2539.2,2538.4,0.55]
[1747726025759,14.19744683,2539.8,2538.8,0.55]
[1747726025760,3.93849527,2539.1,2538.8,0.55]
[1747726025961,3.93857765,2539.0,2538.8,29.766441]
[1747726026141,3.98871361,2538.9,2538.8,29.766441]
[1747726026327,0.05,2538.9,2538.8,27.187414]
[1747726027123,0.05,2538.9,2538.8,31.12628275]
[1747726027446,0.05,2538.9,2538.8,32.55138838]
[1747726027643,0.05,2538.9,2538.8,28.61251963]
[1747726028065,0.05,2538.9,2538.8,32.55138838]
[1747726028249,0.05,2538.9,2538.8,22.70651963]
[1747726028453,0.05,2538.9,2538.8,28.61051963]
[1747726029857,0.05,2538.9,2538.8,32.54938838]
[1747726030263,0.05,2538.9,2538.8,28.61051963]
[1747726031063,0.05,2538.9,2538.8,26.28059163]
[1747726032767,3.98871361,2538.9,2538.8,11.849486]
[1747726032950,3.98871361,2538.9,2538.8,26.125868]
[1747726034494,0.05,2538.9,2538.8,26.675868]
[1747726035769,0.05,2538.9,2538.8,30.61473675]
[1747726036269,0.03976322,2538.9,2538.8,30.61473675]
[1747726036978,0.03976322,2538.9,2538.8,30.98745442]
[1747726037874,0.03976322,2538.9,2538.8,31.18112192]
[1747726038847,3.93742397,2539.8,2539.3,1.5611]
[1747726039061,3.93742397,2539.8,2539.5,8.55]
[1747726039276,3.93742397,2539.8,2539.5,8.93463505]
[1747726039561,3.93762797,2539.6,2539.5,8.93463505]
[1747726039748,3.93762797,2539.6,2539.5,12.34771805]
[1747726040082,3.93762797,2539.6,2539.5,16.50663505]
[1747726041879,3.93778302,2539.5,2539.4,25.001]
[1747726042079,3.93778302,2539.5,2539.4,33.123]
[1747726042295,3.93778302,2539.5,2539.4,17.001]
[1747726042296,5.21667174,2539.5,2539.4,17.001]
[1747726042587,6.19267174,2539.5,2539.4,25.123]
[1747726045386,3.93871361,2538.9,2538.8,0.46985375]
[1747726045558,5.38278497,2538.9,2538.8,8.59185375]
[1747726045758,5.38278497,2538.9,2538.6,16.999]
[1747726045759,3.9390239,2538.7,2538.6,16.999]
[1747726045978,3.9390239,2538.7,2538.6,25.121]
[1747726046848,3.9390239,2538.7,2538.6,16.999]
[1747726047086,3.9390239,2538.7,2538.6,25.121]
[1747726048265,4.9052239,2538.7,2538.6,25.121]
[1747726048481,6.23129364,2538.7,2538.6,25.121]
[1747726049087,6.23129364,2538.7,2538.6,16.999]
[1747726051096,4.9052239,2538.7,2538.6,16.999]
[1747726051468,3.9390239,2538.7,2538.6,16.999]
[1747726052086,3.9390239,2538.7,2538.6,24.999]
[1747726052573,3.9390239,2538.7,2538.6,25.37436342]
[1747726052773,1.0315,2539.4,2538.8,0.9746]
[1747726052974,1.0315,2539.4,2538.9,0.89746]
[1747726052975,3.93855848,2539.0,2538.9,0.89746]
[1747726053298,3.93855848,2539.0,2538.9,17.02046]
[1747726053859,3.93855848,2539.0,2538.9,17.39582342]
[1747726054297,3.93855848,2539.0,2538.9,16.49836342]
[1747726054966,3.93855848,2539.0,2538.9,8.49836342]
[1747726055792,3.93855848,2539.0,2538.9,8.123]
[1747726058383,3.93840337,2539.1,2539.0,8.0]
[1747726058703,3.93840337,2539.1,2539.0,19.380415]
[1747726058900,3.93840337,2539.1,2539.0,14.449815]
[1747726059100,3.93840337,2539.1,2539.0,5.22518073]
[1747726060407,3.93840337,2539.1,2539.0,1.33673373]
[1747726061386,3.93840337,2539.1,2539.0,8.12641373]
[1747726061907,3.93802947,2539.4,2539.0,6.19869973]
[1747726062073,3.93820717,2539.3,2539.1,10.23216997]
[1747726062270,3.93824826,2539.2,2539.1,2.23216997]
[1747726064219,3.93824826,2539.2,2539.1,8.51070976]
[1747726065011,3.93824826,2539.2,2539.1,24.30313576]
[1747726065187,3.93824826,2539.2,2539.1,19.74313576]
[1747726066687,3.93816414,2539.3,2539.1,19.74313576]
[1747726066887,3.93816414,2539.3,2539.2,0.59693568]
[1747726067120,3.93816414,2539.3,2539.2,17.59693568]
[1747726067619,3.93816414,2539.3,2539.2,17.97247547]
[1747726070106,3.93816414,2539.3,2539.2,17.37553979]
[1747726072080,3.93801813,2539.4,2539.2,25.53743079]
[1747726072285,3.93801813,2539.4,2539.2,17.37553979]
[1747726072486,3.93769385,2539.6,2539.3,22.435025]
[1747726072693,3.93769385,2539.6,2539.3,1.42093979]
[1747726072694,3.93793809,2539.4,2539.3,1.42093979]
[1747726072899,3.93793809,2539.4,2539.3,39.33776077]
[1747726073387,3.93793809,2539.4,2539.3,37.07223177]
[1747726073589,3.93769385,2539.6,2539.3,36.11598777]
[1747726073590,3.93783842,2539.5,2539.3,36.11598777]
[1747726073797,3.93748509,2539.7,2539.3,11.90903377]
[1747726074205,3.93748509,2539.7,2539.4,0.37553979]
[1747726074402,3.93762797,2539.6,2539.4,1.36255146]
[1747726075005,0.05,2539.9,2539.4,1.36255146]
[1747726075006,3.93778302,2539.5,2539.4,1.36255146]
[1747726077203,3.93778302,2539.5,2539.4,0.37553979]
[1747726078826,4.99278302,2539.5,2539.4,8.47153979]
[1747726080030,4.99278302,2539.5,2539.4,8.096]
[1747726083532,4.99278302,2539.5,2539.4,8.47279382]
[1747726084435,4.99278302,2539.5,2539.4,0.37679382]
[1747726084634,5.88582668,2539.5,2539.4,8.47279382]
[1747726084836,5.88582668,2539.5,2539.4,8.096]
[1747726086144,3.93778302,2539.5,2539.4,8.096]
[1747726086433,3.93765361,2539.6,2539.4,8.096]
[1747726086434,3.93770965,2539.6,2539.4,8.096]
[1747726086600,3.93770965,2539.6,2539.4,9.0848]
[1747726086803,0.05,2539.9,2539.5,0.55]
[1747726087000,3.93762797,2539.6,2539.5,0.55]
[1747726087318,3.93741886,2539.8,2539.5,10.31348]
[1747726087639,3.98717951,2539.9,2539.5,10.31348]
[1747726087640,3.98718422,2539.9,2539.5,10.31348]
[1747726087945,3.93731789,2539.8,2539.7,9.5272]
[1747726088162,0.05,2539.9,2539.7,9.5272]
[1747726088371,0.05,2539.9,2539.7,9.90403793]
[1747726088520,0.05,2539.9,2539.8,1.61562565]
[1747726088825,3.98716288,2539.9,2539.8,1.61562565]
[1747726089323,0.05,2539.9,2539.8,1.61562565]
[1747726089518,0.05,2539.9,2539.8,2.66799379]
[1747726089745,0.05,2539.9,2539.8,2.62862565]
[1747726090055,0.05,2539.9,2539.8,3.00546358]
[1747726090652,0.05,2539.9,2539.8,34.16802458]
[1747726090854,0.05,2539.9,2539.8,32.02591158]
[1747726091245,0.05,2539.9,2539.8,40.02591158]
[1747726092346,0.05,2539.9,2539.8,22.70120258]
[1747726093751,3.98716288,2539.9,2539.8,21.25698958]
[1747726093959,3.98716288,2539.9,2539.8,20.90934758]
[1747726094122,3.98716288,2539.9,2539.8,0.37683793]
[1747726094123,4.99356288,2539.9,2539.8,0.37683793]
[1747726094328,4.99356288,2539.9,2539.8,8.44583793]
[1747726095229,3.98716288,2539.9,2539.8,8.44583793]
[1747726097562,3.98716288,2539.9,2539.8,8.069]
[1747726097865,3.93778302,2539.5,2539.4,0.47013446]
[1747726098033,3.93778302,2539.5,2539.4,8.53913446]
[1747726098770,3.93778302,2539.5,2539.4,8.44511871]
[1747726099343,3.9871697,2539.9,2539.6,0.9956]
[1747726099656,3.93740503,2539.8,2539.6,0.9956]
[1747726099868,3.93747292,2539.7,2539.6,1.5456]
[1747726100064,3.93747292,2539.7,2539.6,2.97579058]
[1747726100271,3.93747292,2539.7,2539.6,1.98019058]
[1747726101169,3.93747292,2539.7,2539.6,1.43019058]
[1747726102580,3.93747292,2539.7,2539.6,0.37611871]
[1747726103238,3.93778302,2539.5,2539.4,22.52]
[1747726103659,3.93778302,2539.5,2539.4,16.07]
[1747726104070,3.93778302,2539.5,2539.4,16.44610736]
[1747726105476,3.93778302,2539.5,2539.4,0.37610736]
[1747726105686,5.71182659,2539.5,2539.4,8.44610736]
[1747726107370,13.71182659,2539.5,2539.4,8.44610736]
[1747726107556,3.9376527,2539.6,2539.4,8.07]
[1747726107890,3.9376594,2539.6,2539.5,2.248789]
[1747726108176,3.93778302,2539.5,2539.4,8.62]
[1747726108958,3.93778302,2539.5,2539.4,10.750197]
[1747726109576,3.93770944,2539.6,2539.4,10.750197]
[1747726109778,3.93770944,2539.6,2539.5,4.453758]
[1747726110374,3.93770944,2539.6,2539.5,0.55]
[1747726110580,3.93770944,2539.6,2539.5,2.794947]
[1747726110750,3.93770944,2539.6,2539.5,3.3314417]
[1747726111251,3.93770944,2539.6,2539.5,1.0864947]
[1747726111685,3.93770944,2539.6,2539.5,1.46255644]
[1747726113186,3.93770944,2539.6,2539.5,18.45955644]
[1747726114490,0.05,2539.9,2539.7,1.0101]
[1747726114664,0.05,2539.9,2539.8,25.52512173]
[1747726114859,0.05,2539.9,2539.8,41.12936395]
[1747726115269,3.98716288,2539.9,2539.8,19.66308295]
[1747726116087,0.05,2539.9,2539.8,19.63914469]
[1747726116478,3.98716288,2539.9,2539.8,19.63914469]
[1747726117260,3.98716288,2539.9,2539.8,4.87443369]
[1747726117599,3.98716288,2539.9,2539.8,6.27706174]
[1747726117752,3.98716288,2539.9,2539.8,0.37606174]
[1747726117957,3.98716288,2539.9,2539.8,8.44606174]
[1747726118363,4.94536288,2539.9,2539.8,8.44506174]
[1747726121402,4.94536288,2539.9,2539.8,8.069]
[1747726122194,5.83360855,2539.9,2539.8,8.069]
[1747726128319,4.87540855,2539.9,2539.8,8.069]
[1747726128538,13.45099097,2540.4,2539.8,8.069]
[1747726128539,8.56706909,2541.4,2540.1,0.55]
[1747726128818,3.16220644,2541.4,2540.8,0.55]
[1747726128983,3.9349939,2541.3,2541.0,8.55]
[1747726129177,3.93514874,2541.2,2541.0,8.55]
[1747726129380,3.9353036,2541.1,2541.0,8.0]
[1747726131921,3.16220644,2541.4,2541.0,22.32015058]
[1747726132113,3.93528099,2541.2,2541.0,22.32015058]
[1747726132440,3.9353036,2541.1,2541.0,14.82715058]
[1747726132714,3.9353036,2541.1,2541.0,16.41915058]
[1747726134718,3.9353036,2541.1,2541.0,0.37615058]
[1747726134925,4.82755006,2541.1,2541.0,8.41815058]
[1747726135292,4.82755006,2541.1,2541.0,8.042]
[1747726135484,3.9353036,2541.1,2541.0,8.042]
[1747726147730,3.93545848,2541.0,2540.9,26.89848915]
[1747726147936,3.93545848,2541.0,2540.9,39.87508915]
[1747726150425,3.93545848,2541.0,2540.9,33.42608915]
[1747726154233,3.93545848,2541.0,2540.9,25.38608915]
[1747726154426,3.93545848,2541.0,2540.9,33.40908915]
[1747726155138,3.93545848,2541.0,2540.9,33.021]
[1747726155338,3.93545848,2541.0,2540.9,16.998]
[1747726155640,4.72253469,2541.0,2540.9,25.021]
[1747726156041,4.72253469,2541.0,2540.3,0.39085783]
[1747726156042,5.77573469,2541.0,2540.3,0.39085783]
[1747726156205,4.99715287,2540.1,2540.0,0.62691863]
[1747726156405,9.07542187,2540.1,2540.0,0.15672966]
[1747726156705,8.30934669,2540.1,2540.0,0.15672966]
[1747726156923,16.18814384,2540.1,2540.0,0.15672966]
[1747726157518,3.93824826,2539.2,2539.1,8.074]
[1747726158650,3.93824826,2539.2,2539.1,16.074]
[1747726160011,3.93824826,2539.2,2539.1,17.142]
[1747726161640,3.93810711,2539.3,2539.2,8.0]
[1747726161937,3.93810711,2539.3,2539.1,17.142]
[1747726161938,3.93810711,2539.3,2539.1,9.142]
[1747726162117,3.93824826,2539.2,2539.1,10.8562]
[1747726163040,3.93824826,2539.2,2539.1,9.142]
[1747726164428,3.93824826,2539.2,2539.1,8.074]
[1747726170154,3.93824826,2539.2,2539.1,16.074]
[1747726170464,3.93824826,2539.2,2539.1,8.074]
[1747726183597,3.93824826,2539.2,2539.1,0.05]
[1747726183783,5.71468451,2539.2,2539.1,0.05]
[1747726195111,4.72588451,2539.2,2539.1,0.05]
[1747726198325,3.93824826,2539.2,2539.1,0.05]
[1747726200400,3.93824826,2539.2,2539.1,1.1023]
[1747726200921,5.01682383,2540.4,2539.4,0.55]
[1747726201212,3.9377039,2539.6,2539.5,17.0733]
[1747726201982,3.9377039,2539.6,2539.5,17.44997248]
[1747726202403,3.9377039,2539.6,2539.5,17.94997248]
[1747726202590,3.93693406,2540.1,2539.7,1.5942]
[1747726202791,3.93702852,2540.0,2539.9,1.0442]
[1747726202980,3.93702852,2540.0,2539.9,17.0642]
[1747726204112,3.93702852,2540.0,2539.9,17.44087248]
[1747726205932,3.93680546,2540.2,2540.0,8.0]
[1747726206226,3.93685287,2540.1,2540.0,8.0]
[1747726206429,3.93675446,2540.2,2540.0,9.0409652]
[1747726206718,3.93675446,2540.2,2540.0,1.0409652]
[1747726206921,3.93675446,2540.2,2540.1,0.55]
[1747726207144,3.93589362,2540.8,2540.2,8.0]
[1747726207347,3.93631818,2540.5,2540.3,1.0206]
[1747726207556,3.93638797,2540.4,2540.3,11.66978725]
[1747726207715,3.93638797,2540.4,2540.3,19.68878725]
[1747726208824,3.93638797,2540.4,2540.3,16.019]
[1747726213067,3.93623302,2540.5,2540.4,1.0217]
[1747726213273,3.93623302,2540.5,2540.4,1.5217]
[1747726213429,3.93623302,2540.5,2540.4,3.27577]
[1747726214259,1.0229,2541.1,2540.4,11.27577]
[1747726214583,1.0446,2541.4,2540.4,3.27577]
[1747726214881,1.0252,2541.7,2540.9,0.55]
[1747726215086,3.98409138,2541.9,2541.2,1.0631]
[1747726215285,3.93484772,2541.4,2541.3,8.0]
[1747726215843,0.05,2541.9,2541.3,8.0]
[1747726216143,3.93481721,2541.5,2541.3,8.0]
[1747726216568,3.93461001,2541.6,2541.3,8.0]
[1747726216773,3.93461001,2541.6,2541.4,1.98334245]
[1747726216972,3.93461001,2541.6,2541.5,16.005]
[1747726217490,3.93439385,2541.7,2541.5,16.005]
[1747726217695,3.93452943,2541.6,2541.5,16.005]
[1747726217857,3.93452943,2541.6,2541.5,17.71181]
[1747726218900,0.05,2541.9,2541.7,1.0133]
[1747726219094,3.98406506,2541.9,2541.8,0.55]
[1747726219300,3.98406506,2541.9,2541.7,1.0133]
[1747726219301,3.93421984,2541.8,2541.7,1.5633]
[1747726219483,3.93421984,2541.8,2541.7,3.540811]
[1747726219818,3.93421984,2541.8,2541.7,2.990811]
[1747726219992,3.93468424,2541.5,2541.4,1.0128]
[1747726220193,3.93468424,2541.5,2541.4,17.0148]
[1747726220609,3.93468424,2541.5,2541.4,19.489758]
[1747726220913,3.93468424,2541.5,2541.4,16.002]
[1747726221115,3.9349939,2541.3,2541.2,16.995]
[1747726221289,3.9349939,2541.3,2541.2,24.997]
[1747726221683,3.9349939,2541.3,2541.2,16.995]
[1747726221881,3.9349939,2541.3,2541.2,24.997]
[1747726223413,5.21612743,2541.3,2541.2,16.995]
[1747726224616,3.9349939,2541.3,2541.2,16.995]
[1747726227736,3.93460585,2541.6,2541.3,1.6215]
[1747726228034,3.93483906,2541.4,2541.3,1.6215]
[1747726228242,3.93483906,2541.4,2541.3,5.14128]
[1747726228387,3.93483906,2541.4,2541.3,9.6215]
[1747726228593,3.93483906,2541.4,2541.3,17.6225]
[1747726229039,3.9347506,2541.5,2541.4,8.0]
[1747726229196,3.93483906,2541.4,2541.3,17.6225]
[1747726229727,3.93473944,2541.5,2541.4,8.0]
[1747726229932,3.93473944,2541.5,2541.3,22.108141]
[1747726229933,3.93483906,2541.4,2541.3,17.6225]
[1747726231726,3.93483906,2541.4,2541.3,17.99649251]
[1747726231926,3.93483906,2541.4,2541.3,17.44649251]
[1747726233323,3.93483906,2541.4,2541.3,17.94649251]
[1747726235343,3.93483906,2541.4,2541.3,16.87499251]
[1747726236926,3.93483906,2541.4,2541.3,8.87499251]
[1747726238755,4.82247691,2541.4,2541.3,8.87499251]
[1747726239052,5.90867691,2541.4,2541.3,0.37399251]
[1747726239346,3.93514874,2541.2,2541.1,8.0]
[1747726239755,5.00614874,2541.2,2541.1,8.0]
[1747726239954,6.38251299,2541.2,2541.1,8.0]
[1747726240140,3.93514874,2541.2,2541.1,8.0]
[1747726241642,3.93592317,2540.7,2540.6,0.46506996]
[1747726241846,3.93592317,2540.7,2540.6,8.46606996]
[1747726243056,3.93592317,2540.7,2540.6,8.84184698]
[1747726244758,3.93592317,2540.7,2540.6,8.37677702]
[1747726247152,3.93592317,2540.7,2540.6,8.37677702]
[1747726250836,5.78549231,2540.7,2540.6,8.37677702]
[1747726251469,5.78549231,2540.7,2540.6,8.001]
[1747726251666,3.93592317,2540.7,2540.6,8.001]
[1747726252046,3.93592317,2540.7,2540.6,17.0861]
[1747726252244,3.93592317,2540.7,2540.6,16.001]
[1747726252956,3.93592317,2540.7,2540.6,8.001]
[1747726258378,3.93592317,2540.7,2540.3,16.986]
[1747726258379,4.99348797,2540.4,2540.3,16.986]
[1747726260074,3.93654292,2540.3,2540.2,7.991]
[1747726262591,1.091,2540.1,2539.3,0.46506996]
[1747726262773,3.93793809,2539.4,2539.3,0.46506996]
[1747726262973,3.93793809,2539.4,2539.3,9.00706996]
[1747726263172,3.93793809,2539.4,2539.3,8.45706996]
[1747726263500,3.93793809,2539.4,2539.3,8.96861548]
[1747726264049,3.93793809,2539.4,2539.3,8.9175594]
[1747726265511,3.93793809,2539.4,2539.3,8.3675594]
[1747726266170,4.72551236,2539.4,2539.3,0.3755594]
[1747726266386,5.76121236,2539.4,2539.3,8.3675594]
[1747726266975,5.76121236,2539.4,2539.3,0.3755594]
[1747726267784,3.93824826,2539.2,2539.1,0.05]
[1747726268024,4.90821153,2539.2,2539.1,0.05]
[1747726268670,5.97571153,2539.2,2539.1,0.05]
[1747726272499,16.23571153,2539.2,2539.1,0.05]
[1747726275610,24.23571153,2539.2,2539.1,0.05]
[1747726277197,32.21971153,2539.2,2539.1,0.05]
[1747726277399,32.76971153,2539.2,2539.1,0.05]
[1747726278105,4.99959985,2538.2,2538.1,8.034]
[1747726278408,4.99959985,2538.2,2538.1,0.05]
[1747726279996,3.93979985,2538.2,2538.1,0.05]
[1747726281025,3.93682076,2538.2,2538.1,0.05]
[1747726281990,15.21732076,2538.2,2538.1,0.05]
[1747726282190,17.17308846,2538.2,2538.1,0.05]
[1747726285253,25.17308846,2538.2,2538.1,0.05]
[1747726285455,29.31108846,2538.2,2538.1,0.05]
[1747726285749,29.86108846,2538.2,2538.1,0.05]
[1747726286851,25.72308846,2538.2,2538.1,0.05]
[1747726288654,33.71008846,2538.2,2538.1,0.05]
[1747726290459,3.94119733,2537.3,2537.2,7.986]
[1747726290755,15.94492364,2537.3,2537.2,7.986]
[1747726291133,3.94135267,2537.2,2537.1,0.05]
[1747726292744,14.15135267,2537.2,2537.1,0.05]
[1747726293124,15.19035267,2537.2,2537.1,0.05]
[1747726294056,23.19035267,2537.2,2537.1,0.05]
[1747726294257,26.69525117,2537.2,2537.1,0.05]
[1747726297643,25.65625117,2537.2,2537.1,0.05]
[1747726297976,14.15135267,2537.2,2537.1,0.05]
[1747726300660,23.22945267,2537.2,2537.1,0.05]
[1747726303895,14.15135267,2537.2,2537.1,0.05]
[1747726314612,3.94135267,2537.2,2537.1,0.05]
[1747726320445,14.15135267,2537.2,2537.1,0.05]
[1747726320606,16.78134853,2537.2,2537.1,0.05]
[1747726320788,17.85954853,2537.2,2537.1,0.05]
[1747726321602,3.94290671,2536.2,2536.1,0.05]
[1747726322040,7.13104959,2536.2,2536.1,0.05]
[1747726322217,8.34346189,2536.2,2536.1,0.05]
[1747726324111,27.63846189,2536.2,2536.1,0.05]
[1747726324615,28.58546359,2536.2,2536.1,0.05]
[1747726324991,1.085,2535.9,2535.1,8.027]
[1747726325292,3.94446197,2535.2,2535.1,8.027]
[1747726325501,3.94446197,2535.2,2535.1,0.05]
[1747726325705,4.73334039,2535.2,2535.1,0.05]
[1747726327449,14.89334039,2535.2,2535.1,0.05]
[1747726328498,22.89334039,2535.2,2535.1,0.05]
[1747726332499,27.15228327,2535.2,2535.1,0.05]
[1747726333306,27.70228327,2535.2,2535.1,0.05]
[1747726333817,31.94614039,2535.2,2535.1,0.05]
[1747726334342,23.96414039,2535.2,2535.1,0.05]
[1747726334901,22.89334039,2535.2,2535.1,0.05]
[1747726335102,14.10446197,2535.2,2535.1,0.05]
[1747726335312,3.94446197,2535.2,2535.1,0.05]
[1747726342054,3.94446197,2535.2,2535.1,1.0903]
[1747726359680,3.94352866,2535.8,2535.1,1.0903]
[1747726359681,1.2124123,2536.2,2535.2,0.55]
[1747726359838,11.1956,2536.6,2535.4,0.55]
[1747726360184,1.0356,2536.8,2535.8,1.0177]
[1747726360339,3.94304046,2536.2,2535.6,0.58942777]
[1747726360539,3.94304046,2536.2,2535.9,1.0177]
[1747726360767,3.94304046,2536.2,2536.1,1.0177]
[1747726361275,3.94304046,2536.2,2536.1,1.39420154]
[1747726361450,3.94181875,2536.9,2536.2,1.0177]
[1747726361651,3.94271706,2536.4,2536.2,1.0177]
[1747726362062,3.94275125,2536.3,2536.2,1.0177]
[1747726363144,3.94249775,2536.5,2536.2,1.0177]
[1747726363446,3.94270054,2536.4,2536.2,1.0177]
[1747726363645,3.94275125,2536.3,2536.2,2.07006202]
[1747726363852,3.94275125,2536.3,2536.2,1.0177]
[1747726366687,3.94241528,2536.6,2535.9,1.0353]
[1747726366982,3.94275125,2536.3,2536.2,7.945]
[1747726367152,3.94275125,2536.3,2536.2,8.9392]
[1747726367582,15.12135668,2537.1,2536.2,8.9392]
[1747726367784,3.94275125,2536.3,2536.2,8.9392]
[1747726372862,3.94265982,2536.4,2536.2,8.9392]
[1747726373196,3.9425958,2536.4,2536.3,1.0108]
[1747726373579,3.94251778,2536.5,2536.3,1.0108]
[1747726373756,3.9425958,2536.4,2536.3,1.0108]
[1747726373961,3.9425958,2536.4,2536.3,1.90651771]